Workbook

Sheet Karte 1
A1: Name | B1: Datum | C1: Arbeitszeit | D1: Einkommen | E1: Kalenderwoche | F1: Task
A2: Eren Yilmaz | B2: 16/05/2022 | C2: 60 | D2: 28 | E2: 20 | F2: root/EnD/Meeting
A3: Eren Yilmaz | B3: 21/05/2022 | C3: 497 | D3: 231.9333333 | E3: 20 | F3: root/EnD/Tradingbot
A4: Eren Yilmaz | B4: 21/05/2022 | C4: 5 | D4: 2.333333333 | E4: 20 | F4: root/EnD/Tradingbot
A5: Eren Yilmaz | B5: 22/05/2022 | C5: 143 | D5: 66.73333333 | E5: 20 | F5: root/EnD/Tradingbot
A6: Eren Yilmaz | B6: 23/05/2022 | C6: 60 | D6: 28 | E6: 21 | F6: root/EnD/Meeting
A7: Eren Yilmaz | B7: 25/05/2022 | C7: 60 | D7: 28 | E7: 21 | F7: root/EnD/Meeting
A8: Eren Yilmaz | B8: 28/05/2022 | C8: 300 | D8: 140 | E8: 21 | F8: root/EnD/Tradingbot
A9: Eren Yilmaz | B9: 29/05/2022 | C9: 61 | D9: 28.46666667 | E9: 21 | F9: root/EnD/Meeting
A10: Eren Yilmaz | B10: 29/05/2022 | C10: 241 | D10: 112.4666667 | E10: 21 | F10: root/EnD/Tradingbot
A11: Eren Yilmaz | B11: 30/05/2022 | C11: 84 | D11: 39.2 | E11: 22 | F11: root/EnD/Meeting
A12: Eren Yilmaz | B12: 04/06/2022 | C12: 462 | D12: 215.6 | E12: 22 | F12: root/EnD/Tradingbot/Samstagsmeeting
A13: Eren Yilmaz | B13: 04/06/2022 | C13: 2 | D13: 0.9333333333 | E13: 22 | F13: root/EnD/Tradingbot
A14: Eren Yilmaz | B14: 05/06/2022 | C14: 40 | D14: 18.66666667 | E14: 22 | F14: root/EnD/Gründercupschreiben
A15: Eren Yilmaz | B15: 05/06/2022 | C15: 74 | D15: 34.53333333 | E15: 22 | F15: root/EnD/Tradingbot
A16: Eren Yilmaz | B16: 05/06/2022 | C16: 39 | D16: 18.2 | E16: 22 | F16: root/EnD/Meeting
A17: Eren Yilmaz | B17: 05/06/2022 | C17: 510 | D17: 238 | E17: 22 | F17: root/EnD/Tradingbot
A18: Eren Yilmaz | B18: 05/06/2022 | C18: 240 | D18: 112 | E18: 22 | F18: root/EnD/Tradingbot
A19: Eren Yilmaz | B19: 19/06/2022 | C19: 6 | D19: 2.8 | E19: 24 | F19: root/EnD/Gründercupschreiben
A20: Eren Yilmaz | B20: 05/06/2022 | C20: 120 | D20: 56 | E20: 25 | F20: root/EnD/Gründercupschreiben
A21: Eren Yilmaz | B21: 05/06/2022 | C21: 420 | D21: 196 | E21: 25 | F21: root/EnD/Tradingbot
A22: Eren Yilmaz | B22: 26/06/2022 | C22: 60 | D22: 28 | E22: 25 | F22: root/EnD/Tradingbot
A23: Eren Yilmaz | B23: 26/06/2022 | C23: 90 | D23: 42 | E23: 25 | F23: root/EnD/Tradingbot
A24: Eren Yilmaz | B24: 27/06/2022 | C24: 45 | D24: 21 | E24: 26 | F24: root/EnD/Tradingbot
A25: Eren Yilmaz | B25: 27/06/2022 | C25: 90 | D25: 42 | E25: 26 | F25: root/EnD/Meeting
A26: Eren Yilmaz | B26: 02/07/2022 | C26: 420 | D26: 196 | E26: 26 | F26: root/EnD/Tradingbot
A27: Eren Yilmaz | B27: 09/07/2022 | C27: 510 | D27: 238 | E27: 27 | F27: root/EnD/Tradingbot
A28: Eren Yilmaz | B28: 04/07/2022 | C28: 60 | D28: 28 | E28: 27 | F28: root/EnD/Meeting
A29: Eren Yilmaz | B29: 10/07/2022 | C29: 288 | D29: 134.4 | E29: 27 | F29: root/EnD/Tradingbot
A30: Eren Yilmaz | B30: 11/07/2022 | C30: 60 | D30: 28 | E30: 28 | F30: root/EnD/Meeting
A31: Eren Yilmaz | B31: 2022-07-16 | C31: 180 | D31: 84 | E31: 28 | F31: root/EnD/Tradingbot
A32: Eren Yilmaz | B32: 23/07/2022 | C32: 510 | D32: 238 | E32: 29 | F32: root/EnD/Tradingbot
A33: Eren Yilmaz | B33: 06/08/2022 | C33: 510 | D33: 238 | E33: 30 | F33: root/EnD/Tradingbot
A34: Eren Yilmaz | B34: 2022-08-13 | C34: 510 | D34: 238 | E34: 31 | F34: root/EnD/Tradingbot
A35: Eren Yilmaz | B35: 20/08/2022 | C35: 510 | D35: 238 | E35: 32 | F35: root/EnD/Tradingbot
A36: Eren Yilmaz | B36: 2022-07-17 | C36: 180 | D36: 84 | E36: x | F36: root/EnD/Tradingbot
A37: Eren Yilmaz | B37: 2022-07-19 | C37: 30 | D37: 14 | E37: x | F37: root/EnD/LinkGuide
A38: Eren Yilmaz | B38: 2022-07-20 | C38: 180 | D38: 84 | E38: x | F38: root/EnD/LinkGuide
A39: Eren Yilmaz | B39: 2022-07-22 | C39: 90 | D39: 42 | E39: x | F39: root/EnD/LinkGuide
A40: Eren Yilmaz | B40: 2022-07-25 | C40: 180 | D40: 84 | E40: x | F40: root/EnD/LinkGuide
A41: Eren Yilmaz | B41: 2022-07-25 | C41: 30 | D41: 14 | E41: x | F41: root/EnD/LinkGuide
A42: Eren Yilmaz | B42: 2022-07-25 | C42: 30 | D42: 14 | E42: x | F42: root/EnD/LinkGuide
A43: Eren Yilmaz | B43: 2022-08-08 | C43: 30 | D43: 14 | E43: x | F43: root/EnD/LinkGuide
A44: Eren Yilmaz | B44: 2022-08-12 | C44: 60 | D44: 28 | E44: x | F44: root/EnD/LinkGuide
A45: Eren Yilmaz | B45: 2022-08-16 | C45: 60 | D45: 28 | E45: x | F45: root/EnD/LinkGuide
A46: Eren Yilmaz | B46: 2022-08-18 | C46: 60 | D46: 28 | E46: x | F46: root/EnD/LinkGuide
A47: Eren Yilmaz | B47: 2022-08-19 | C47: 60 | D47: 28 | E47: x | F47: root/EnD/LinkGuide
A48: Eren Yilmaz | B48: 21/08/2022 | C48: 126 | D48: 58.8 | E48: 33 | F48: root/EnD/LinkGuide
A49: Eren Yilmaz | B49: 2022-08-27 | C49: 510 | D49: 238 | E49: 32 | F49: root/EnD/Tradingbot
A50: Eren Yilmaz | B50: 28/08/2022 | C50: 136 | D50: 63.46666667 | E50: 34 | F50: root/EnD/Gründercupschreiben
A51: Eren Yilmaz | B51: 2022-09-01 | C51: 480 | D51: 224 | E51: 35 | F51: root/EnD/LinkGuide
A52: Eren Yilmaz | B52: 2022-08-29 | C52: 60 | D52: 28 | E52: 28 | F52: root/EnD/Meeting
A53: Eren Yilmaz | B53: 01/09/2022 | C53: 81 | D53: 37.8 | E53: 35 | F53: root/EnD/LinkGuide
A54: Eren Yilmaz | B54: 2022-09-03 | C54: 360 | D54: 168 | E54: x | F54: root/EnD/LinkGuide
A55: Eren Yilmaz | B55: 2022-09-04 | C55: 240 | D55: 112 | E55: x | F55: root/EnD/LinkGuide
A56: Eren Yilmaz | B56: 2022-09-05 | C56: 60 | D56: 28 | E56: x | F56: root/EnD/Meeting
A57: Eren Yilmaz | B57: 2022-09-08 | C57: 60 | D57: 28 | E57: x | F57: root/EnD/LinkGuide
A58: Eren Yilmaz | B58: 2022-09-10 | C58: 241 | D58: 112.4666667 | E58: x | F58: root/EnD/Tradingbot
A59: Eren Yilmaz | B59: 2022-09-12 | C59: 126 | D59: 58.8 | E59: x | F59: root/EnD/LinkGuide
A60: Eren Yilmaz | B60: 2022-09-12 | C60: 60 | D60: 28 | E60: x | F60: root/EnD/Meeting
A61: Eren Yilmaz | B61: 2022-09-14 | C61: 180 | D61: 84 | E61: x | F61: root/EnD/LinkGuide
A62: Eren Yilmaz | B62: 2022-09-14 | C62: 420 | D62: 196 | E62: x | F62: root/EnD/LinkGuide
A63: Eren Yilmaz | B63: 2022-09-16 | C63: 90 | D63: 42 | E63: x | F63: root/EnD/LinkGuide
A64: Eren Yilmaz | B64: 2022-09-17 | C64: 450 | D64: 210 | E64: x | F64: root/EnD/Tradingbot
A65: Eren Yilmaz | B65: 2022-09-18 | C65: 30 | D65: 14 | E65: x | F65: root/EnD/LinkGuide
A66: Eren Yilmaz | B66: 2022-09-20 | C66: 90 | D66: 42 | E66: x | F66: root/EnD/LinkGuide
A67: Eren Yilmaz | B67: 20/09/2022 | C67: 94 | D67: 43.87 | E67: 38 | F67: root/EnD/LinkGuide
A68: Eren Yilmaz | B68: 21/09/2022 | C68: 160 | D68: 74.67 | E68: 38 | F68: root/EnD/LinkGuide
A69: Eren Yilmaz | B69: 2022-09-25 | C69: 510 | D69: 238 | E69: x | F69: root/EnD/Tradingbot
A70: Eren Yilmaz | B70: 2022-09-25 | C70: 180 | D70: 84 | E70: x | F70: root/EnD/LinkGuide
A71: Eren Yilmaz | B71: 26/09/2022 | C71: 75 | D71: 35 | E71: 39 | F71: root/EnD/LinkGuide
A72: Eren Yilmaz | B72: 26/09/2022 | C72: 50 | D72: 23.33 | E72: 39 | F72: root/EnD/LinkGuide
A73: Eren Yilmaz | B73: 26/09/2022 | C73: 114 | D73: 53.2 | E73: 39 | F73: root/EnD/Meeting
A74: Eren Yilmaz | B74: 2022-09-27 | C74: 60 | D74: 28 | E74: 39 | F74: root/EnD/LinkGuide
A75: Eren Yilmaz | B75: 2022-10-01 | C75: 480 | D75: 224 | E75: x | F75: root/EnD/Tradingbot
A76: Eren Yilmaz | B76: 2022-10-03 | C76: 60 | D76: 27 | E76: x | F76: root/EnD/LinkGuide
A77: Eren Yilmaz | B77: 2022-10-08 | C77: 480 | D77: 224 | E77: x | F77: root/EnD/Meeting
A78: Eren Yilmaz | B78: 2022-10-10 | C78: 97 | D78: 45.26666667 | E78: x | F78: root/EnD/Meeting
A79: Eren Yilmaz | B79: 2022-10-13 | C79: 120 | D79: 56 | E79: x | F79: root/EnD/Meeting
A80: Eren Yilmaz | B80: 2022-10-14 | C80: 120 | D80: 56 | E80: x | F80: root/EnD/LinkGuide
A81: Eren Yilmaz | B81: 2022-10-16 | C81: 360 | D81: 168 | E81: x | F81: root/EnD/Tradingbot
A82: Eren Yilmaz | B82: 2022-10-17 | C82: 60 | D82: 28 | E82: x | F82: root/EnD/Meeting
A83: Eren Yilmaz | B83: 2022-10-18 | C83: 30 | D83: 14 | E83: x | F83: root/EnD/Tradingbot
A84: Eren Yilmaz | B84: 2022-10-22 | C84: 360 | D84: 168 | E84: x | F84: root/EnD/Tradingbot
A85: Eren Yilmaz | B85: 2022-10-29 | C85: 360 | D85: 168 | E85: x | F85: root/EnD/Tradingbot
A86: Eren Yilmaz | B86: 2022-10-24 | C86: 60 | D86: 28 | E86: x | F86: root/EnD/LinkGuide
A87: Eren Yilmaz | B87: 2022-10-29 | C87: 360 | D87: 168 | E87: x | F87: root/EnD/Tradingbot
A88: Eren Yilmaz | B88: 2022-10-31 | C88: 120 | D88: 56 | E88: x | F88: root/EnD/LinkGuide
A89: Eren Yilmaz | B89: 2022-11-02 | C89: 60 | D89: 28 | E89: x | F89: root/EnD/LinkGuide
A90: Eren Yilmaz | B90: 2022-11-05 | C90: 480 | D90: 224 | E90: x | F90: root/EnD/Tradingbot
A91: Eren Yilmaz | B91: 2022-11-06 | C91: 240 | D91: 112 | E91: x | F91: root/EnD/LinkGuide
A92: Eren Yilmaz | B92: 2022-11-15 | C92: 300 | D92: 140 | E92: x | F92: root/EnD/Fototermin
A93: Eren Yilmaz | B93: 2022-11-12 | C93: 360 | D93: 168 | E93: x | F93: root/EnD/LinkGuide
A94: Eren Yilmaz | B94: 2022-11-15 | C94: 60 | D94: 28 | E94: x | F94: root/EnD/LinkGuide
A95: Eren Yilmaz | B95: 2022-11-20 | C95: 300 | D95: 140 | E95: x | F95: root/EnD/Tradingbot
A96: Eren Yilmaz | B96: 2022-11-26 | C96: 60 | D96: 28 | E96: x | F96: root/EnD/LinkGuide
A97: Eren Yilmaz | B97: 2022-11-27 | C97: 60 | D97: 28 | E97: x | F97: root/EnD/LinkGuide
A98: Eren Yilmaz | B98: 2022-12-03 | C98: 120 | D98: 56 | E98: 48 | F98: root/EnD/Tools
A99: Eren Yilmaz | B99: 2022-12-03 | C99: 60 | D99: 28 | E99: x | F99: root/EnD/LinkGuide
A100: Eren Yilmaz | B100: 2022-12-03 | C100: 120 | D100: 56 | E100: x | F100: root/EnD/Tradingbot
A101: Eren Yilmaz | B101: 2022-12-05 | C101: 60 | D101: 28 | E101: x | F101: root/EnD/Meeting
A102: Eren Yilmaz | B102: 2022-12-07 | C102: 90 | D102: 42 | E102: x | F102: root/EnD/Meeting
A103: Eren Yilmaz | B103: 2022-12-08 | C103: 90 | D103: 42 | E103: x | F103: root/EnD/Meeting
A104: Eren Yilmaz | B104: 2022-12-10 | C104: =60*7 -> 420 | D104: =C104/60*28 -> 196 | E104: x | F104: root/EnD/Tradingbot
A105: Eren Yilmaz | B105: 2022-12-11 | C105: 30 | D105: 14 | E105: x | F105: root/EnD/LinkGuide
A106: Eren Yilmaz | B106: 2022-12-12 | C106: 60 | D106: 28 | E106: x | F106: root/EnD/Meeting
A107: Eren Yilmaz | B107: 2022-12-19 | C107: 90 | D107: 42 | E107: x | F107: root/EnD/Tradingbot
A108: Eren Yilmaz | B108: 2022-12-19 | C108: 60 | D108: 28 | E108: x | F108: root/EnD/Meeting
A109: Eren Yilmaz | B109: 2022-12-19 | C109: 30 | D109: 14 | E109: x | F109: root/EnD/LinkGuide
A110: Eren Yilmaz | B110: 2022-12-20 | C110: 60 | D110: 28 | E110: x | F110: root/EnD/LinkGuide
A111: Eren Yilmaz | B111: 2022-12-20 | C111: 120 | D111: 56 | E111: x | F111: root/EnD/LinkGuide
A112: Eren Yilmaz | B112: 2022-12-19 | C112: 15 | D112: =28*C112/60 -> 7 | E112: x | F112: root/EnD/Tradingbot
A113: Eren Yilmaz | B113: 2022-12-22 | C113: 60 | D113: 28 | E113: x | F113: root/EnD/LinkGuide
A114: Eren Yilmaz | B114: 2022-12-25 | C114: 15 | D114: =28*C114/60 -> 7 | E114: x | F114: root/EnD/Tradingbot
A115: Eren Yilmaz | B115: 2022-12-25 | C115: 15 | D115: =28*C115/60 -> 7 | E115: x | F115: root/EnD/Tradingbot
A116: Eren Yilmaz | B116: 2022-12-27 | C116: =60*(1+1.5+4.5) -> 420 | D116: =C116/60*28 -> 196 | E116: x | F116: root/EnD/LinkGuide
A117: Eren Yilmaz | B117: 2022-12-28 | C117: 120 | D117: 56 | E117: x | F117: root/EnD/LinkGuide
A118: Eren Yilmaz | B118: 2023-01-01 | C118: 120 | D118: 56 | E118: x | F118: root/EnD/Tradingbot
A119: Eren Yilmaz | B119: 2023-01-03 | C119: 120 | D119: 56 | E119: x | F119: root/EnD/Meeting
A120: Eren Yilmaz | B120: 2023-01-03 | C120: 120 | D120: 56 | E120: x | F120: root/EnD/LinkGuide
A121: Eren Yilmaz | B121: 2023-01-05 | C121: 120 | D121: 56 | E121: x | F121: root/EnD/LinkGuide
A122: Eren Yilmaz | B122: 2023-01-07 | C122: 100 | D122: 46.66666667 | E122: x | F122: root/EnD/Tradingbot
A123: Eren Yilmaz | B123: 2023-01-07 | C123: =60*3.5 -> 210 | D123: 98 | E123: x | F123: root/EnD/Tradingbot
A124: Eren Yilmaz | B124: 2023-01-07 | C124: 150 | D124: 70 | E124: x | F124: root/EnD/LinkGuide
A125: Eren Yilmaz | B125: 2023-01-09 | C125: 85 | D125: =C125/60*28 -> 39.66666667 | E125: x | F125: root/EnD/Meeting
A126: Eren Yilmaz | B126: 2023-01-11 | C126: 90 | D126: 42 | E126: x | F126: root/EnD/Meeting
A127: Eren Yilmaz | B127: 2023-01-13 | C127: 30 | D127: =C127/60*28 -> 14 | E127: x | F127: root/EnD/Meeting
A128: Eren Yilmaz | B128: 2023-01-13 | C128: 65 | D128: =C128/60*28 -> 30.33333333 | E128: x | F128: root/EnD/Meeting
A129: Eren Yilmaz | B129: 2023-01-14 | C129: =60*3.75 -> 225 | D129: =C129/60*28 -> 105 | E129: x | F129: root/EnD/Tradingbot/Samstagsmeeting
A130: Eren Yilmaz | B130: 2023-01-14 | C130: 15 | D130: 7 | E130: x | F130: root/EnD/Meeting
A131: Eren Yilmaz | B131: 2023-01-13 | C131: 80 | D131: 37.33333333 | E131: x | F131: root/EnD/LinkGuide
A132: Eren Yilmaz | B132: 2023-01-14 | C132: 60 | D132: =C132/60*28 -> 28 | E132: x | F132: root/EnD/LinkGuide
A133: Eren Yilmaz | B133: 2023-01-14 | C133: 60 | D133: 28 | E133: x | F133: root/EnD/Tradingbot
A134: Eren Yilmaz | B134: 2023-01-15 | C134: =2.5*60 -> 150 | D134: =C134/60*28 -> 70 | E134: x | F134: root/EnD/LinkGuide
A135: Eren Yilmaz | B135: 2023-01-15 | C135: 60 | D135: =C135/60*28 -> 28 | E135: x | F135: root/EnD/LinkGuide
A136: Eren Yilmaz | B136: 2023-01-16 | C136: 60 | D136: =C136/60*28 -> 28 | E136: x | F136: root/EnD/Meeting
A137: Eren Yilmaz | B137: 2023-01-21 | C137: 240 | D137: =C137/60*28 -> 112 | E137: x | F137: root/EnD/Tradingbot
A138: Eren Yilmaz | B138: 2023-01-23 | C138: 60 | D138: =C138/60*28 -> 28 | E138: x | F138: root/EnD/Meeting
A139: Eren Yilmaz | B139: 2023-01-23 | C139: =60*2+17 -> 137 | D139: =C139/60*28 -> 63.93333333 | E139: x | F139: root/EnD/Deployment
A140: Eren Yilmaz | B140: 2023-01-28 | C140: 300 | D140: 140 | E140: x | F140: root/EnD/Tradingbot
A141: Eren Yilmaz | B141: 2023-01-30 | C141: 90 | D141: 42 | E141: x | F141: root/EnD/Meeting
A142: Eren Yilmaz | B142: 2023-01-30 | C142: 60 | D142: =C142/60*28 -> 28 | E142: x | F142: root/EnD/LinkGuide
A143: Eren Yilmaz | B143: 2023-01-30 | C143: 60 | D143: =C143/60*28 -> 28 | E143: x | F143: root/EnD/LinkGuide
A144: Eren Yilmaz | B144: 2023-02-04 | C144: =60*8+2 -> 482 | D144: =C144/60*28 -> 224.9333333 | E144: x | F144: root/EnD/Tradingbot
A145: Eren Yilmaz | B145: 2023-02-05 | C145: =7+60*4+28 -> 275 | D145: =C145/60*28 -> 128.3333333 | E145: x | F145: root/EnD/LinkGuide
A146: Eren Yilmaz | B146: 2023-02-06 | C146: 60 | D146: =C146/60*28 -> 28 | E146: x | F146: root/EnD/LinkGuide
A147: Eren Yilmaz | B147: 2023-02-06 | C147: 120 | D147: 56 | E147: x | F147: root/EnD/Meeting
A148: Eren Yilmaz | B148: 2023-02-11 | C148: =4*60 -> 240 | D148: 112 | E148: x | F148: root/EnD/Tradingbot
A149: Eren Yilmaz | B149: 2023-02-11 | C149: =3*60+52 -> 232 | D149: =C149/60*28 -> 108.2666667 | E149: x | F149: root/EnD/Tradingbot
A150: Eren Yilmaz | B150: 2023-02-12 | C150: =7*60 -> 420 | D150: =C150/60*28 -> 196 | E150: x | F150: root/EnD/LinkGuide
A151: Eren Yilmaz | B151: 2023-02-13 | C151: 180 | D151: 84 | E151: x | F151: root/EnD/Meeting
A152: Eren Yilmaz | B152: 2023-02-13 | C152: 120 | D152: =C152/60*28 -> 56 | E152: x | F152: root/EnD/Meeting
A153: Eren Yilmaz | B153: 2023-02-12 | C153: =7*60 -> 420 | D153: =C153/60*28 -> 196 | E153: x | F153: root/EnD/LinkGuide
A154: Eren Yilmaz | B154: 2023-02-27 | C154: 120 | D154: =C154/60*28 -> 56 | E154: x | F154: root/EnD/Meeting
A155: Eren Yilmaz | B155: 2023-02-28 | C155: 60 | D155: =C155/60*28 -> 28 | E155: x | F155: root/EnD/LinkGuide
A156: Eren Yilmaz | B156: 2023-03-02 | C156: 60 | D156: =C156/60*28 -> 28 | E156: x | F156: root/EnD/Meeting
A157: Eren Yilmaz | B157: 2023-03-04 | C157: =6*60 -> 360 | D157: =C157/60*28 -> 168 | E157: x | F157: root/EnD/Tradingbot
A158: Eren Yilmaz | B158: 2023-03-04 | C158: =4.5*60 -> 270 | D158: =C158/60*28 -> 126 | E158: x | F158: root/EnD/LinkGuide
A159: Eren Yilmaz | B159: 2023-03-06 | C159: 120 | D159: =C159/60*28 -> 56 | E159: x | F159: root/EnD/Meeting
A160: Eren Yilmaz | B160: 2023-03-08 | C160: =60*3.5 -> 210 | D160: =C160/60*28 -> 98 | E160: x | F160: root/EnD/Meeting
A161: Eren Yilmaz | B161: 2023-03-11 | C161: =60*6 -> 360 | D161: =C161/60*28 -> 168 | E161: x | F161: root/EnD/Tradingbot
A162: Eren Yilmaz | B162: 2023-03-13 | C162: 60 | D162: 28 | E162: x | F162: root/EnD/Meeting
A163: Eren Yilmaz | B163: 2023-03-18 | C163: =60*7.5 -> 450 | D163: =C163/60*28 -> 210 | E163: x | F163: root/EnD/Tradingbot
A164: Eren Yilmaz | B164: 2023-03-19 | C164: =4*60 -> 240 | D164: =C164/60*28 -> 112 | E164: x | F164: root/EnD/Tradingbot
A165: Eren Yilmaz | B165: 2023-03-25 | C165: =3*60 -> 180 | D165: =C165/60*28 -> 84 | E165: x | F165: root/EnD/Tradingbot
A166: Eren Yilmaz | B166: 2023-03-25 | C166: =1.5*60 -> 90 | D166: =C166/60*28 -> 42 | E166: x | F166: root/EnD/LinkGuide
